[Event "Titled Tuesday Blitz February 14 Early 2023"]
[White "Kohler, Aran"]
[Black "Manon-og, Ramon Jr."]
[WhiteFideId "1002856"]
[BlackFideId "5200776"]
[WhiteElo "2010"]
[BlackElo "1999"]
[Result "0-1"]
[Round "10"]
[TimeControl "180+2"]
[Date "2023.02.14"]
[WhiteClock "0:00:41"]
[BlackClock "0:01:24"]

1. Nf3 {[%clk 0:02:59]}  Nf6 {[%clk 0:02:59]} 2. d4 {[%clk 0:02:56]}  g6 {[%clk 0:03:00]} 3. Bg5 {[%clk 0:02:56]}  d5 {[%clk 0:03:01]} 4. Nbd2 {[%clk 0:02:55]}  Bg7 {[%clk 0:03:01]} 5. e3 {[%clk 0:02:55]}  h6 {[%clk 0:03:00]} 6. Bf4 {[%clk 0:02:54]}  Nh5 {[%clk 0:03:00]} 7. Be5 {[%clk 0:02:52]}  f6 {[%clk 0:03:00]} 8. Bg3 {[%clk 0:02:49]}  O-O {[%clk 0:02:55]} 9. Bd3 {[%clk 0:02:47]}  Nxg3 {[%clk 0:02:55]} 10. hxg3 {[%clk 0:02:45]}  f5 {[%clk 0:02:56]} 11. Ne5 {[%clk 0:02:38]}  Qd6 {[%clk 0:02:53]} 12. f4 {[%clk 0:02:33]}  c5 {[%clk 0:02:52]} 13. c3 {[%clk 0:02:32]}  cxd4 {[%clk 0:02:51]} 14. exd4 {[%clk 0:02:32]}  Nc6 {[%clk 0:02:52]} 15. g4 {[%clk 0:02:29]}  Nxe5 {[%clk 0:02:52]} 16. fxe5 {[%clk 0:02:29]}  Qb6 {[%clk 0:02:51]} 17. b4 {[%clk 0:02:25]}  fxg4 {[%clk 0:02:49]} 18. Bxg6 {[%clk 0:02:23]}  Qxg6 {[%clk 0:02:49]} 19. Qb3 {[%clk 0:02:21]}  Be6 {[%clk 0:02:44]} 20. O-O-O {[%clk 0:02:20]}  Rac8 {[%clk 0:02:40]} 21. Kb2 {[%clk 0:02:20]}  Rf2 {[%clk 0:02:39]} 22. g3 {[%clk 0:02:02]}  Qg5 {[%clk 0:02:27]} 23. Qc2 {[%clk 0:01:57]}  Bf5 {[%clk 0:02:24]} 24. Qc1 {[%clk 0:01:57]}  Qe3 {[%clk 0:02:24]} 25. Kb3 {[%clk 0:01:52]}  Bd3 {[%clk 0:02:19]} 26. Rh4 {[%clk 0:01:24]}  Be2 {[%clk 0:02:12]} 27. Re1 {[%clk 0:01:19]}  Qxg3 {[%clk 0:02:04]} 28. Rhh1 {[%clk 0:01:10]}  Bf3 {[%clk 0:02:00]} 29. Nxf3 {[%clk 0:01:09]}  Qxf3 {[%clk 0:01:59]} 30. Re3 {[%clk 0:00:58]}  Qf4 {[%clk 0:01:52]} 31. Rg1 {[%clk 0:00:51]}  h5 {[%clk 0:01:51]} 32. Qe1 {[%clk 0:00:48]}  Bh6 {[%clk 0:01:50]} 33. Rd3 {[%clk 0:00:47]}  Qh2 {[%clk 0:01:42]} 34. Qb1 {[%clk 0:00:43]}  Rcf8 {[%clk 0:01:38]} 35. Ka4 {[%clk 0:00:42]}  Rxa2+ {[%clk 0:01:36]} 36. Kb5 {[%clk 0:00:42]}  Ra6 {[%clk 0:01:31]} 37. Kc5 {[%clk 0:00:42]}  e6 {[%clk 0:01:27]} 38. b5 {[%clk 0:00:41]}  Rc8+ {[%clk 0:01:24]} 39. Kb4 {[%clk 0:00:41]}  Bf8+ {[%clk 0:01:24]} 0-1


[Site "https://www.chess.com"]

[Event "Titled Tuesday Blitz February 14 Early 2023"]
[White "Llanos, Guillermo"]
[Black "Schut, Han"]
[WhiteFideId "100358"]
[BlackFideId "1005561"]
[WhiteElo "2290"]
[BlackElo "2101"]
[Result "1-0"]
[Round "10"]
[TimeControl "180+2"]
[Date "2023.02.14"]
[WhiteClock "0:01:02"]
[BlackClock "0:00:06"]

1. g3 {[%clk 0:03:00]}  Nf6 {[%clk 0:02:55]} 2. Bg2 {[%clk 0:03:00]}  d5 {[%clk 0:02:55]} 3. d3 {[%clk 0:02:58]}  c5 {[%clk 0:02:55]} 4. Nf3 {[%clk 0:02:58]}  Nc6 {[%clk 0:02:55]} 5. O-O {[%clk 0:02:57]}  e5 {[%clk 0:02:56]} 6. e4 {[%clk 0:02:54]}  d4 {[%clk 0:02:43]} 7. Na3 {[%clk 0:02:52]}  h6 {[%clk 0:02:42]} 8. Nc4 {[%clk 0:02:51]}  Qc7 {[%clk 0:02:42]} 9. a4 {[%clk 0:02:51]}  Be6 {[%clk 0:02:41]} 10. b3 {[%clk 0:02:49]}  Be7 {[%clk 0:02:40]} 11. Nh4 {[%clk 0:02:44]}  g5 {[%clk 0:02:31]} 12. Nf5 {[%clk 0:02:43]}  Bxf5 {[%clk 0:02:28]} 13. exf5 {[%clk 0:02:42]}  O-O-O {[%clk 0:02:21]} 14. Re1 {[%clk 0:02:40]}  Bd6 {[%clk 0:02:20]} 15. a5 {[%clk 0:02:31]}  Rhe8 {[%clk 0:02:16]} 16. Bd2 {[%clk 0:02:07]}  a6 {[%clk 0:02:01]} 17. Nb6+ {[%clk 0:02:06]}  Kb8 {[%clk 0:02:01]} 18. Nd5 {[%clk 0:02:02]}  Nxd5 {[%clk 0:01:56]} 19. Bxd5 {[%clk 0:02:01]}  Ne7 {[%clk 0:01:32]} 20. Be4 {[%clk 0:01:56]}  f6 {[%clk 0:01:29]} 21. Qh5 {[%clk 0:01:55]}  Ng8 {[%clk 0:01:24]} 22. g4 {[%clk 0:01:46]}  Qg7 {[%clk 0:01:13]} 23. Ra4 {[%clk 0:01:44]}  Bc7 {[%clk 0:01:13]} 24. Rc4 {[%clk 0:01:42]}  Bd6 {[%clk 0:01:10]} 25. Rb1 {[%clk 0:01:40]}  Re7 {[%clk 0:01:08]} 26. Qh3 {[%clk 0:01:37]}  Qh8 {[%clk 0:00:56]} 27. Qf3 {[%clk 0:01:36]}  h5 {[%clk 0:00:48]} 28. h3 {[%clk 0:01:24]}  hxg4 {[%clk 0:00:45]} 29. hxg4 {[%clk 0:01:24]}  Rh7 {[%clk 0:00:45]} 30. Kf1 {[%clk 0:01:22]}  Rh3 {[%clk 0:00:40]} 31. Qg2 {[%clk 0:01:21]}  Rh2 {[%clk 0:00:40]} 32. Qg1 {[%clk 0:01:21]}  Rd7 {[%clk 0:00:33]} 33. b4 {[%clk 0:01:20]}  cxb4 {[%clk 0:00:27]} 34. Bxb4 {[%clk 0:01:19]}  Bc7 {[%clk 0:00:17]} 35. Bd2 {[%clk 0:01:15]}  Bd8 {[%clk 0:00:18]} 36. Rcb4 {[%clk 0:01:14]}  Rhh7 {[%clk 0:00:13]} 37. R4b3 {[%clk 0:01:13]}  Kc8 {[%clk 0:00:12]} 38. Qg2 {[%clk 0:01:12]}  Rh2 {[%clk 0:00:11]} 39. Bxb7+ {[%clk 0:01:09]}  Kb8 {[%clk 0:00:10]} 40. Qc6 {[%clk 0:01:06]}  Qh4 {[%clk 0:00:07]} 41. Qc8+ {[%clk 0:01:02]}  Ka7 {[%clk 0:00:06]} 42. Qa8# {[%clk 0:01:02]} 1-0


[Site "https://www.chess.com"]

[Event "Titled Tuesday Blitz February 14 Early 2023"]
[White "Rosh Jain"]
[Black "Liu, Casper"]
[WhiteFideId "25789465"]
[BlackFideId "1454153"]
[WhiteElo "2248"]
[BlackElo "2278"]
[Result "1-0"]
[Round "10"]
[TimeControl "180+2"]
[Date "2023.02.14"]
[WhiteClock "0:02:07"]
[BlackClock "0:02:33"]

1. e4 {[%clk 0:02:59]}  c5 {[%clk 0:02:59]} 2. Nf3 {[%clk 0:03:00]}  d6 {[%clk 0:03:00]} 3. d4 {[%clk 0:03:00]}  cxd4 {[%clk 0:03:01]} 4. Nxd4 {[%clk 0:03:00]}  Nf6 {[%clk 0:03:02]} 5. Nc3 {[%clk 0:03:01]}  Nc6 {[%clk 0:03:03]} 6. Bc4 {[%clk 0:03:00]}  e6 {[%clk 0:03:02]} 7. Bb3 {[%clk 0:03:00]}  a6 {[%clk 0:03:03]} 8. O-O {[%clk 0:03:00]}  Be7 {[%clk 0:03:01]} 9. Bg5 {[%clk 0:02:57]}  O-O {[%clk 0:03:01]} 10. Kh1 {[%clk 0:02:54]}  Qb6 {[%clk 0:02:53]} 11. Nxc6 {[%clk 0:02:39]}  Qxc6 {[%clk 0:02:54]} 12. f4 {[%clk 0:02:34]}  b5 {[%clk 0:02:51]} 13. e5 {[%clk 0:02:29]}  Bb7 {[%clk 0:02:50]} 14. Qe2 {[%clk 0:02:20]}  b4 {[%clk 0:02:33]} 15. exf6 {[%clk 0:02:15]}  gxf6 {[%clk 0:02:34]} 16. Bh6 {[%clk 0:02:08]}  bxc3 {[%clk 0:02:33]} 17. Qg4+ {[%clk 0:02:07]} 1-0


[Site "https://www.chess.com"]

[Event "Titled Tuesday Blitz February 14 Early 2023"]
[White "Thomas, Anysia"]
[Black "Sadovsky, Artem"]
[WhiteFideId "670472"]
[BlackFideId "4155840"]
[WhiteElo "2147"]
[BlackElo "2276"]
[Result "0-1"]
[Round "10"]
[TimeControl "180+2"]
[Date "2023.02.14"]
[WhiteClock "0:00:03"]
[BlackClock "0:00:18"]

1. d4 {[%clk 0:03:00]}  g6 {[%clk 0:02:35]} 2. c4 {[%clk 0:03:00]}  Bg7 {[%clk 0:02:30]} 3. Nc3 {[%clk 0:03:00]}  d6 {[%clk 0:02:30]} 4. e4 {[%clk 0:03:00]}  e5 {[%clk 0:02:29]} 5. dxe5 {[%clk 0:02:35]}  dxe5 {[%clk 0:02:30]} 6. Qc2 {[%clk 0:02:32]}  Nc6 {[%clk 0:02:19]} 7. Nf3 {[%clk 0:02:30]}  Nd4 {[%clk 0:02:17]} 8. Nxd4 {[%clk 0:02:29]}  exd4 {[%clk 0:02:18]} 9. Nd5 {[%clk 0:02:26]}  c6 {[%clk 0:02:18]} 10. Nb4 {[%clk 0:02:23]}  Nf6 {[%clk 0:02:14]} 11. Bg5 {[%clk 0:02:18]}  O-O {[%clk 0:02:12]} 12. Be2 {[%clk 0:01:50]}  Re8 {[%clk 0:02:04]} 13. f3 {[%clk 0:01:49]}  Qa5 {[%clk 0:01:47]} 14. Bd2 {[%clk 0:01:49]}  Qe5 {[%clk 0:01:45]} 15. Nd3 {[%clk 0:01:46]}  Qc7 {[%clk 0:01:42]} 16. b4 {[%clk 0:01:44]}  a5 {[%clk 0:01:39]} 17. c5 {[%clk 0:01:40]}  axb4 {[%clk 0:01:36]} 18. Bxb4 {[%clk 0:01:39]}  Nd7 {[%clk 0:01:32]} 19. O-O {[%clk 0:01:38]}  Ne5 {[%clk 0:01:32]} 20. Bd2 {[%clk 0:01:16]}  Nxd3 {[%clk 0:01:28]} 21. Bxd3 {[%clk 0:01:15]}  Be6 {[%clk 0:01:27]} 22. a4 {[%clk 0:01:14]}  Bf8 {[%clk 0:01:17]} 23. a5 {[%clk 0:01:10]}  Qe5 {[%clk 0:01:11]} 24. Rac1 {[%clk 0:01:02]}  Qh5 {[%clk 0:00:39]} 25. f4 {[%clk 0:00:33]}  f5 {[%clk 0:00:34]} 26. exf5 {[%clk 0:00:17]}  Bxf5 {[%clk 0:00:32]} 27. Qc4+ {[%clk 0:00:17]}  Be6 {[%clk 0:00:27]} 28. Qxd4 {[%clk 0:00:16]}  Rad8 {[%clk 0:00:27]} 29. Qc3 {[%clk 0:00:11]}  Bg7 {[%clk 0:00:27]} 30. Qc2 {[%clk 0:00:10]}  Bd4+ {[%clk 0:00:24]} 31. Kh1 {[%clk 0:00:09]}  Bd5 {[%clk 0:00:24]} 32. Bb4 {[%clk 0:00:05]}  Re3 {[%clk 0:00:19]} 33. Rce1 {[%clk 0:00:04]}  Rh3 {[%clk 0:00:19]} 34. Be4 {[%clk 0:00:03]}  Rxh2# {[%clk 0:00:18]} 0-1


[Site "https://www.chess.com"]

[Event "Titled Tuesday Blitz February 14 Early 2023"]
[White "Buscar, Michael"]
[Black "Ghosh, Chanchal Kumer"]
[WhiteFideId "2603616"]
[BlackFideId "10201858"]
[WhiteElo "2041"]
[BlackElo "2020"]
[Result "1-0"]
[Round "10"]
[TimeControl "180+2"]
[Date "2023.02.14"]
[WhiteClock "0:01:11"]
[BlackClock "0:00:02"]

1. Nf3 {[%clk 0:02:55]}  c6 {[%clk 0:03:00]} 2. b3 {[%clk 0:02:54]}  d5 {[%clk 0:03:01]} 3. Bb2 {[%clk 0:02:54]}  Nf6 {[%clk 0:03:01]} 4. e3 {[%clk 0:02:55]}  Nbd7 {[%clk 0:03:01]} 5. c4 {[%clk 0:02:56]}  e6 {[%clk 0:03:01]} 6. cxd5 {[%clk 0:02:55]}  exd5 {[%clk 0:03:00]} 7. Be2 {[%clk 0:02:56]}  Bd6 {[%clk 0:03:00]} 8. O-O {[%clk 0:02:57]}  O-O {[%clk 0:03:01]} 9. d3 {[%clk 0:02:56]}  h6 {[%clk 0:03:00]} 10. Nbd2 {[%clk 0:02:57]}  Re8 {[%clk 0:03:01]} 11. Qc2 {[%clk 0:02:56]}  Qe7 {[%clk 0:02:38]} 12. Qc3 {[%clk 0:02:53]}  a5 {[%clk 0:02:21]} 13. a3 {[%clk 0:02:51]}  c5 {[%clk 0:01:55]} 14. Rfe1 {[%clk 0:02:50]}  b5 {[%clk 0:01:50]} 15. d4 {[%clk 0:02:43]}  c4 {[%clk 0:01:38]} 16. bxc4 {[%clk 0:02:41]}  bxc4 {[%clk 0:01:39]} 17. Ne5 {[%clk 0:02:40]}  Nxe5 {[%clk 0:01:25]} 18. dxe5 {[%clk 0:02:38]}  Bxe5 {[%clk 0:01:25]} 19. Qxe5 {[%clk 0:02:35]}  Qxe5 {[%clk 0:01:25]} 20. Bxe5 {[%clk 0:02:35]}  Rxe5 {[%clk 0:01:25]} 21. Nf3 {[%clk 0:02:35]}  Re8 {[%clk 0:01:22]} 22. Red1 {[%clk 0:02:35]}  Be6 {[%clk 0:01:22]} 23. Nd4 {[%clk 0:02:35]}  Rab8 {[%clk 0:01:21]} 24. Rab1 {[%clk 0:02:31]}  Ne4 {[%clk 0:01:21]} 25. Rdc1 {[%clk 0:02:17]}  a4 {[%clk 0:01:10]} 26. Bf3 {[%clk 0:02:05]}  Rxb1 {[%clk 0:00:53]} 27. Rxb1 {[%clk 0:02:03]}  Nd2 {[%clk 0:00:53]} 28. Rb4 {[%clk 0:02:02]}  Nxf3+ {[%clk 0:00:47]} 29. gxf3 {[%clk 0:02:01]}  Ra8 {[%clk 0:00:45]} 30. Kf1 {[%clk 0:01:59]}  g5 {[%clk 0:00:44]} 31. Ke2 {[%clk 0:01:59]}  Kg7 {[%clk 0:00:42]} 32. Kd2 {[%clk 0:01:59]}  Kf6 {[%clk 0:00:41]} 33. Kc3 {[%clk 0:01:59]}  h5 {[%clk 0:00:40]} 34. Rb6 {[%clk 0:01:57]}  g4 {[%clk 0:00:32]} 35. f4 {[%clk 0:01:49]}  Ke7 {[%clk 0:00:19]} 36. f5 {[%clk 0:01:34]}  Bd7 {[%clk 0:00:20]} 37. f6+ {[%clk 0:01:35]}  Kd8 {[%clk 0:00:19]} 38. Rd6 {[%clk 0:01:33]}  Ke8 {[%clk 0:00:18]} 39. Rxd5 {[%clk 0:01:33]}  Rb8 {[%clk 0:00:18]} 40. Rxh5 {[%clk 0:01:33]}  Kd8 {[%clk 0:00:14]} 41. Rh8+ {[%clk 0:01:32]}  Kc7 {[%clk 0:00:15]} 42. Rxb8 {[%clk 0:01:31]}  Kxb8 {[%clk 0:00:16]} 43. Kxc4 {[%clk 0:01:32]}  Kc7 {[%clk 0:00:16]} 44. Kd5 {[%clk 0:01:30]}  Bc8 {[%clk 0:00:14]} 45. Nb5+ {[%clk 0:01:27]}  Kb6 {[%clk 0:00:14]} 46. Nd6 {[%clk 0:01:28]}  Be6+ {[%clk 0:00:14]} 47. Kd4 {[%clk 0:01:24]}  Kc6 {[%clk 0:00:14]} 48. Ne4 {[%clk 0:01:23]}  Bb3 {[%clk 0:00:12]} 49. Nc5 {[%clk 0:01:22]}  Ba2 {[%clk 0:00:11]} 50. Nxa4 {[%clk 0:01:22]}  Kd6 {[%clk 0:00:12]} 51. Nc3 {[%clk 0:01:21]}  Bb3 {[%clk 0:00:12]} 52. a4 {[%clk 0:01:19]}  Ke6 {[%clk 0:00:12]} 53. a5 {[%clk 0:01:20]}  Kd6 {[%clk 0:00:08]} 54. a6 {[%clk 0:01:18]}  Kc6 {[%clk 0:00:08]} 55. Ne4 {[%clk 0:01:16]}  Kb6 {[%clk 0:00:08]} 56. Nc5 {[%clk 0:01:12]}  Bd1 {[%clk 0:00:08]} 57. e4 {[%clk 0:01:11]}  Bf3 {[%clk 0:00:07]} 58. e5 {[%clk 0:01:11]}  Kc6 {[%clk 0:00:07]} 59. e6 {[%clk 0:01:11]}  fxe6 {[%clk 0:00:03]} 60. Nxe6 {[%clk 0:01:10]}  Kd6 {[%clk 0:00:02]} 61. Nf4 {[%clk 0:01:11]} 1-0


[Site "https://www.chess.com"]

[Event "Titled Tuesday Blitz February 14 Early 2023"]
[White "Rios Escobar, Adan"]
[Black "Thorsteinsdottir, Hallgerdur"]
[WhiteFideId "3403645"]
[BlackFideId "2302454"]
[WhiteElo "2234"]
[BlackElo "1978"]
[Result "1-0"]
[Round "10"]
[TimeControl "180+2"]
[Date "2023.02.14"]
[WhiteClock "0:01:17"]
[BlackClock "0:00:44"]

1. d4 {[%clk 0:02:57]}  Nf6 {[%clk 0:02:53]} 2. g3 {[%clk 0:02:56]}  g6 {[%clk 0:02:50]} 3. Bg2 {[%clk 0:02:57]}  d5 {[%clk 0:02:50]} 4. c4 {[%clk 0:02:55]}  Bg7 {[%clk 0:02:48]} 5. cxd5 {[%clk 0:02:53]}  Nxd5 {[%clk 0:02:48]} 6. Nf3 {[%clk 0:02:53]}  Nc6 {[%clk 0:02:44]} 7. O-O {[%clk 0:02:54]}  O-O {[%clk 0:02:43]} 8. e4 {[%clk 0:02:52]}  Nb6 {[%clk 0:02:42]} 9. d5 {[%clk 0:02:52]}  Na5 {[%clk 0:02:42]} 10. Qe1 {[%clk 0:02:44]}  Nac4 {[%clk 0:02:40]} 11. Nc3 {[%clk 0:02:39]}  a5 {[%clk 0:02:36]} 12. b3 {[%clk 0:02:37]}  Ne5 {[%clk 0:02:34]} 13. Nxe5 {[%clk 0:02:33]}  Bxe5 {[%clk 0:02:33]} 14. Bb2 {[%clk 0:02:34]}  Bg7 {[%clk 0:02:26]} 15. a4 {[%clk 0:02:22]}  Nd7 {[%clk 0:02:24]} 16. Qe3 {[%clk 0:02:19]}  c5 {[%clk 0:02:12]} 17. Nd1 {[%clk 0:02:06]}  Qb6 {[%clk 0:01:45]} 18. Bxg7 {[%clk 0:02:03]}  Kxg7 {[%clk 0:01:44]} 19. Nb2 {[%clk 0:02:03]}  Ne5 {[%clk 0:01:33]} 20. f4 {[%clk 0:02:03]}  Ng4 {[%clk 0:01:33]} 21. Qc3+ {[%clk 0:02:02]}  Nf6 {[%clk 0:01:22]} 22. e5 {[%clk 0:01:55]}  c4+ {[%clk 0:01:15]} 23. Kh1 {[%clk 0:01:50]}  Ng4 {[%clk 0:01:15]} 24. h3 {[%clk 0:01:36]}  Ne3 {[%clk 0:01:05]} 25. Nxc4 {[%clk 0:01:30]}  Nxc4 {[%clk 0:00:47]} 26. bxc4 {[%clk 0:01:27]}  Bf5 {[%clk 0:00:46]} 27. c5 {[%clk 0:01:24]}  Qa6 {[%clk 0:00:44]} 28. g4 {[%clk 0:01:17]}  Bd7 {[%clk 0:00:44]} 29. e6+ {[%clk 0:01:17]} 1-0


[Site "https://www.chess.com"]

[Event "Titled Tuesday Blitz February 14 Early 2023"]
[White "Sabar, Ethmane Daouda"]
[Black "Jenkins, Drake"]
[WhiteFideId "19600097"]
[BlackFideId "2022397"]
[WhiteElo "2040"]
[BlackElo "2130"]
[Result "0-1"]
[Round "10"]
[TimeControl "180+2"]
[Date "2023.02.14"]
[WhiteClock "0:00:17"]
[BlackClock "0:00:55"]

1. e4 {[%clk 0:02:21]}  c5 {[%clk 0:02:58]} 2. a3 {[%clk 0:02:21]}  g6 {[%clk 0:02:56]} 3. b4 {[%clk 0:02:21]}  Bg7 {[%clk 0:02:56]} 4. Nc3 {[%clk 0:02:21]}  d6 {[%clk 0:02:54]} 5. Nf3 {[%clk 0:02:17]}  Nf6 {[%clk 0:02:48]} 6. bxc5 {[%clk 0:02:02]}  Nxe4 {[%clk 0:02:44]} 7. Bb2 {[%clk 0:01:51]}  Nxc3 {[%clk 0:02:43]} 8. Bxc3 {[%clk 0:01:50]}  Bxc3 {[%clk 0:02:40]} 9. dxc3 {[%clk 0:01:51]}  dxc5 {[%clk 0:02:40]} 10. Qxd8+ {[%clk 0:01:50]}  Kxd8 {[%clk 0:02:40]} 11. Bc4 {[%clk 0:01:50]}  e6 {[%clk 0:02:28]} 12. O-O-O+ {[%clk 0:01:45]}  Ke7 {[%clk 0:02:27]} 13. Rd2 {[%clk 0:01:31]}  Nd7 {[%clk 0:02:16]} 14. Rhd1 {[%clk 0:01:30]}  Nb6 {[%clk 0:02:16]} 15. Ba2 {[%clk 0:01:24]}  Bd7 {[%clk 0:02:06]} 16. Ne5 {[%clk 0:01:20]}  Rad8 {[%clk 0:02:04]} 17. a4 {[%clk 0:01:11]}  f6 {[%clk 0:01:52]} 18. a5 {[%clk 0:01:01]}  fxe5 {[%clk 0:01:51]} 19. axb6 {[%clk 0:01:02]}  axb6 {[%clk 0:01:51]} 20. c4 {[%clk 0:00:58]}  Bc6 {[%clk 0:01:49]} 21. f3 {[%clk 0:00:57]}  Rxd2 {[%clk 0:01:45]} 22. Rxd2 {[%clk 0:00:57]}  e4 {[%clk 0:01:45]} 23. fxe4 {[%clk 0:00:53]}  Bxe4 {[%clk 0:01:45]} 24. c3 {[%clk 0:00:53]}  Rf8 {[%clk 0:01:39]} 25. Kb2 {[%clk 0:00:49]}  Rf1 {[%clk 0:01:33]} 26. Bb3 {[%clk 0:00:37]}  Rg1 {[%clk 0:01:31]} 27. g3 {[%clk 0:00:36]}  Rg2 {[%clk 0:01:31]} 28. Kc1 {[%clk 0:00:33]}  Rxd2 {[%clk 0:01:30]} 29. Kxd2 {[%clk 0:00:34]}  Bc6 {[%clk 0:01:29]} 30. Ke3 {[%clk 0:00:33]}  e5 {[%clk 0:01:24]} 31. Bc2 {[%clk 0:00:32]}  Kf6 {[%clk 0:01:23]} 32. Bd3 {[%clk 0:00:32]}  h6 {[%clk 0:01:23]} 33. h3 {[%clk 0:00:24]}  g5 {[%clk 0:01:18]} 34. h4 {[%clk 0:00:19]}  Bd7 {[%clk 0:01:05]} 35. Kf3 {[%clk 0:00:16]}  Bf5 {[%clk 0:01:01]} 36. Be4 {[%clk 0:00:14]}  Bxe4+ {[%clk 0:01:00]} 37. Kxe4 {[%clk 0:00:15]}  gxh4 {[%clk 0:00:59]} 38. gxh4 {[%clk 0:00:15]}  Ke6 {[%clk 0:01:00]} 39. h5 {[%clk 0:00:15]}  Kf6 {[%clk 0:00:56]} 40. Kd5 {[%clk 0:00:14]}  Kf5 {[%clk 0:00:56]} 41. Kd6 {[%clk 0:00:15]}  e4 {[%clk 0:00:56]} 42. Kc7 {[%clk 0:00:16]}  e3 {[%clk 0:00:57]} 43. Kxb6 {[%clk 0:00:16]}  e2 {[%clk 0:00:58]} 44. Kxc5 {[%clk 0:00:17]}  e1=Q {[%clk 0:00:57]} 45. Kb6 {[%clk 0:00:17]}  Qxc3 {[%clk 0:00:57]} 46. c5 {[%clk 0:00:18]}  Kg5 {[%clk 0:00:56]} 47. Kxb7 {[%clk 0:00:17]}  Qxc5 {[%clk 0:00:55]} 0-1


[Site "https://www.chess.com"]

[Event "Titled Tuesday Blitz February 14 Early 2023"]
[White "EdmundPlayer"]
[Black "Broca Jimenez, Fernando"]
[BlackFideId "5104742"]
[WhiteElo "2246"]
[BlackElo "2075"]
[Result "0-1"]
[Round "10"]
[TimeControl "180+2"]
[Date "2023.02.14"]
[WhiteClock "0:00:01"]
[BlackClock "0:00:05"]

1. e4 {[%clk 0:02:56]}  c5 {[%clk 0:03:00]} 2. Nc3 {[%clk 0:02:55]}  g6 {[%clk 0:02:54]} 3. g3 {[%clk 0:02:55]}  Bg7 {[%clk 0:02:54]} 4. Bg2 {[%clk 0:02:55]}  e6 {[%clk 0:02:55]} 5. Nge2 {[%clk 0:02:54]}  Ne7 {[%clk 0:02:55]} 6. d3 {[%clk 0:02:53]}  O-O {[%clk 0:02:56]} 7. Be3 {[%clk 0:02:53]}  b6 {[%clk 0:02:54]} 8. Qd2 {[%clk 0:02:53]}  Bb7 {[%clk 0:02:51]} 9. O-O {[%clk 0:02:48]}  d5 {[%clk 0:02:52]} 10. exd5 {[%clk 0:02:47]}  Nxd5 {[%clk 0:02:52]} 11. Nxd5 {[%clk 0:02:46]}  Bxd5 {[%clk 0:02:51]} 12. Bxd5 {[%clk 0:02:41]}  Qxd5 {[%clk 0:02:52]} 13. Nc3 {[%clk 0:02:37]}  Qd7 {[%clk 0:02:31]} 14. Bh6 {[%clk 0:02:36]}  Nc6 {[%clk 0:02:32]} 15. Bxg7 {[%clk 0:02:34]}  Kxg7 {[%clk 0:02:33]} 16. Rae1 {[%clk 0:02:30]}  Nd4 {[%clk 0:02:31]} 17. f4 {[%clk 0:02:30]}  Rad8 {[%clk 0:02:25]} 18. Ne4 {[%clk 0:02:28]}  Nf5 {[%clk 0:02:21]} 19. g4 {[%clk 0:02:08]}  Qd4+ {[%clk 0:02:19]} 20. Kh1 {[%clk 0:02:06]}  Nd6 {[%clk 0:02:18]} 21. Nxd6 {[%clk 0:01:40]}  Qxd6 {[%clk 0:02:16]} 22. Qg2 {[%clk 0:01:21]}  Qd4 {[%clk 0:01:57]} 23. b3 {[%clk 0:01:20]}  Qd5 {[%clk 0:01:52]} 24. Rf3 {[%clk 0:01:16]}  Rfe8 {[%clk 0:01:47]} 25. Re4 {[%clk 0:01:12]}  Qc6 {[%clk 0:01:39]} 26. Qe2 {[%clk 0:00:56]}  f5 {[%clk 0:01:36]} 27. gxf5 {[%clk 0:00:50]}  exf5 {[%clk 0:01:36]} 28. Re5 {[%clk 0:00:41]}  Rxe5 {[%clk 0:01:15]} 29. fxe5 {[%clk 0:00:40]}  Re8 {[%clk 0:01:08]} 30. Kg1 {[%clk 0:00:30]}  Re6 {[%clk 0:01:06]} 31. Re3 {[%clk 0:00:25]}  Qd5 {[%clk 0:01:03]} 32. c3 {[%clk 0:00:17]}  h6 {[%clk 0:00:57]} 33. h3 {[%clk 0:00:10]}  a5 {[%clk 0:00:56]} 34. Kh2 {[%clk 0:00:09]}  g5 {[%clk 0:00:56]} 35. Qe1 {[%clk 0:00:06]}  Kg6 {[%clk 0:00:55]} 36. Qe2 {[%clk 0:00:06]}  b5 {[%clk 0:00:53]} 37. b4 {[%clk 0:00:04]}  cxb4 {[%clk 0:00:51]} 38. cxb4 {[%clk 0:00:04]}  axb4 {[%clk 0:00:51]} 39. Qb2 {[%clk 0:00:04]}  f4 {[%clk 0:00:42]} 40. Re4 {[%clk 0:00:02]}  Kf5 {[%clk 0:00:42]} 41. Rxb4 {[%clk 0:00:02]}  Rxe5 {[%clk 0:00:40]} 42. d4 {[%clk 0:00:02]}  g4 {[%clk 0:00:24]} 43. dxe5 {[%clk 0:00:01]}  g3+ {[%clk 0:00:24]} 44. Kg1 {[%clk 0:00:02]}  Qd1+ {[%clk 0:00:23]} 45. Kg2 {[%clk 0:00:01]}  Qd5+ {[%clk 0:00:14]} 46. Kf1 {[%clk 0:00:02]}  Qh1+ {[%clk 0:00:10]} 47. Ke2 {[%clk 0:00:02]}  g2 {[%clk 0:00:09]} 48. Qc2+ {[%clk 0:00:02]}  Kg5 {[%clk 0:00:09]} 49. Rxf4 {[%clk 0:00:01]}  Qxh3 {[%clk 0:00:05]} 0-1


[Site "https://www.chess.com"]

[Event "Titled Tuesday Blitz February 14 Early 2023"]
[White "Ciuffoletti, Paolo"]
[Black "Ricaurte Lopez, Juan Carlos"]
[WhiteFideId "807630"]
[BlackFideId "3600327"]
[WhiteElo "2106"]
[BlackElo "2226"]
[Result "1-0"]
[Round "10"]
[TimeControl "180+2"]
[Date "2023.02.14"]
[WhiteClock "0:00:05"]
[BlackClock "0:00:05"]

1. e4 {[%clk 0:03:00]}  e5 {[%clk 0:02:59]} 2. Bc4 {[%clk 0:02:52]}  Nf6 {[%clk 0:02:57]} 3. Nf3 {[%clk 0:02:52]}  Nc6 {[%clk 0:02:54]} 4. d4 {[%clk 0:02:49]}  exd4 {[%clk 0:02:52]} 5. Ng5 {[%clk 0:02:49]}  d5 {[%clk 0:02:46]} 6. exd5 {[%clk 0:02:48]}  Na5 {[%clk 0:02:26]} 7. Qe2+ {[%clk 0:02:43]}  Be7 {[%clk 0:02:25]} 8. d6 {[%clk 0:02:42]}  Qxd6 {[%clk 0:02:12]} 9. Bxf7+ {[%clk 0:02:31]}  Kf8 {[%clk 0:02:06]} 10. Bb3 {[%clk 0:02:14]}  Nxb3 {[%clk 0:02:03]} 11. axb3 {[%clk 0:02:14]}  Bf5 {[%clk 0:01:44]} 12. O-O {[%clk 0:02:04]}  d3 {[%clk 0:01:38]} 13. Qf3 {[%clk 0:01:53]}  dxc2 {[%clk 0:01:18]} 14. Qxf5 {[%clk 0:00:55]}  cxb1=Q {[%clk 0:01:14]} 15. Rxb1 {[%clk 0:00:55]}  Qd5 {[%clk 0:01:09]} 16. Qh3 {[%clk 0:00:45]}  Bd6 {[%clk 0:00:56]} 17. Be3 {[%clk 0:00:38]}  Re8 {[%clk 0:00:49]} 18. Rbd1 {[%clk 0:00:27]}  Qe5 {[%clk 0:00:39]} 19. Rfe1 {[%clk 0:00:16]}  h6 {[%clk 0:00:36]} 20. Bd2 {[%clk 0:00:11]}  Qxh2+ {[%clk 0:00:20]} 21. Qxh2 {[%clk 0:00:10]}  Bxh2+ {[%clk 0:00:20]} 22. Kxh2 {[%clk 0:00:09]}  hxg5+ {[%clk 0:00:20]} 23. Kg1 {[%clk 0:00:09]}  Rxe1+ {[%clk 0:00:16]} 24. Bxe1 {[%clk 0:00:07]}  Ke7 {[%clk 0:00:16]} 25. Bb4+ {[%clk 0:00:07]}  Ke6 {[%clk 0:00:15]} 26. Re1+ {[%clk 0:00:06]}  Kd7 {[%clk 0:00:15]} 27. Re7+ {[%clk 0:00:06]}  Kc6 {[%clk 0:00:15]} 28. Rxg7 {[%clk 0:00:07]}  Nd5 {[%clk 0:00:14]} 29. Rg6+ {[%clk 0:00:05]}  Kd7 {[%clk 0:00:12]} 30. Bd2 {[%clk 0:00:05]}  Re8 {[%clk 0:00:08]} 31. Rxg5 {[%clk 0:00:05]}  Re2 {[%clk 0:00:08]} 32. Rxd5+ {[%clk 0:00:05]}  Kc6 {[%clk 0:00:08]} 33. Rd3 {[%clk 0:00:05]}  b5 {[%clk 0:00:06]} 34. Kf1 {[%clk 0:00:06]}  Re3 {[%clk 0:00:05]} 35. Bxe3 {[%clk 0:00:05]} 1-0


[Site "https://www.chess.com"]